bitfinex/quotes_ETHUSD_20250518
["timestamp","ask_amount","ask_price","bid_price","bid_amount"]
[1747584224465,3.87860362,2578.3,2577.9,1.741]
[1747584224673,0.7916,2578.7,2577.3,1.7411]
[1747584224841,3.87923761,2577.9,2577.4,17.409]
[1747584225043,0.7916,2578.1,2577.4,17.409]
[1747584225245,3.87919667,2577.9,2577.4,17.409]
[1747584225446,0.7916,2578.1,2577.3,1.7411]
[1747584225650,3.87942165,2577.8,2577.5,8.702]
[1747584225846,0.7916,2578.1,2577.2,20.63408649]
[1747584225847,0.7916,2578.1,2577.2,16.754]
[1747584226178,4.67048271,2578.1,2577.5,3.87965031]
[1747584226378,3.8790534,2578.0,2577.5,3.87967124]
[1747584226589,0.7916,2578.1,2577.5,3.8797092]
[1747584226750,0.7916,2578.1,2577.2,16.754]
[1747584227375,3.87858294,2578.3,2577.8,3.87926493]
[1747584227858,0.7916,2578.4,2577.8,0.67622821]
[1747584228061,3.87876558,2578.2,2577.9,8.702]
[1747584228573,3.87876558,2578.2,2577.8,0.67622821]
[1747584228738,3.87897141,2578.1,2577.9,8.701]
[1747584229078,4.67099416,2577.8,2577.7,8.701]
[1747584229280,0.7916,2577.8,2577.7,8.701]
[1747584229856,0.7916,2577.8,2577.3,3.8799304]
[1747584230057,0.7916,2577.8,2577.4,21.2857972]
[1747584231169,0.7916,2577.8,2577.4,21.28587727]
[1747584231366,0.7916,2577.8,2577.5,2.12858773]
[1747584231573,3.8790801,2578.0,2577.5,2.12858773]
[1747584231884,4.67049667,2578.1,2577.5,3.87964664]
[1747584232080,0.7916,2578.1,2577.4,17.406]
[1747584232287,3.87937,2577.8,2577.4,17.405]
[1747584232480,0.7916,2577.9,2577.3,8.7]
[1747584232785,0.7916,2577.9,2577.2,16.754]
[1747584232786,3.87981163,2577.5,2577.2,16.754]
[1747584232981,3.87957405,2577.7,2577.1,3.8803038]
[1747584233281,3.87983144,2577.5,2577.0,17.405]
[1747584233953,3.87971442,2577.6,2577.0,21.28545049]
[1747584234148,3.87957756,2577.7,2577.1,3.88019636]
[1747584234349,4.09638256,2577.8,2577.2,3.88011677]
[1747584234549,0.21703461,2577.8,2577.2,3.88018004]
[1747584234887,0.21703461,2577.8,2577.4,3.87984912]
[1747584235287,4.67074301,2577.9,2577.4,3.87984912]
[1747584235488,0.7916,2577.9,2577.1,6.39686374]
[1747584235872,3.8792769,2577.8,2577.2,4.24623276]
[1747584236187,3.87966973,2577.6,2577.3,8.699]
[1747584236485,0.787,2577.4,2577.2,0.36612435]
[1747584236660,3.88002948,2577.3,2577.2,0.36612435]
[1747584238065,3.88002948,2577.3,2576.9,8.698]
[1747584238388,3.88035622,2577.1,2576.9,8.698]
[1747584238981,3.88044312,2577.1,2576.8,9.14843266]
[1747584239187,3.88044312,2577.1,2576.8,0.45043266]
[1747584240281,0.7791,2577.2,2576.7,8.699]
[1747584240473,3.88078236,2576.8,2576.7,8.699]
[1747584240792,3.88078236,2576.8,2576.4,16.751]
[1747584240992,4.65993648,2576.8,2576.4,25.449]
[1747584241208,3.881024,2576.7,2576.4,25.449]
[1747584241355,0.7791,2576.8,2576.4,25.449]
[1747584241695,4.65997013,2576.8,2576.4,25.449]
[1747584241892,0.7791,2576.8,2576.4,25.449]
[1747584242099,4.66002524,2576.8,2576.4,25.449]
[1747584242295,0.7791,2576.8,2576.3,0.06973133]
[1747584242460,0.7791,2576.8,2576.4,3.88138352]
[1747584242662,3.88093297,2576.7,2576.3,0.06973133]
[1747584242897,3.88121434,2576.6,2576.3,0.06973133]
[1747584243100,3.88124125,2576.5,2576.3,0.06973133]
[1747584243299,3.88116572,2576.6,2576.3,0.06973133]
[1747584243495,0.7791,2576.8,2576.3,0.06973133]
[1747584243863,3.88138487,2576.4,2576.3,0.06973133]
[1747584244215,3.88116446,2576.6,2576.3,0.06973133]
[1747584244422,1.03497543,2577.1,2576.3,1.81640446]
[1747584244720,0.21717543,2577.1,2576.8,3.88071388]
[1747584244916,0.8178,2577.4,2577.1,3.88027004]
[1747584245106,3.88030404,2577.2,2576.9,8.697]
[1747584245305,3.88035736,2577.1,2576.9,8.697]
[1747584245479,3.88048117,2577.0,2576.7,8.7]
[1747584245681,0.8178,2576.8,2576.3,1.81640446]
[1747584245881,0.8178,2576.8,2576.5,3.88121664]
[1747584246081,10.02,2577.4,2576.8,3.88071188]
[1747584246280,4.69779112,2577.4,2576.8,3.88063183]
[1747584246897,0.8178,2577.4,2576.7,8.7]
[1747584247097,3.88043695,2577.1,2576.8,8.697]
[1747584247296,0.8178,2577.4,2576.8,8.697]
[1747584247718,0.8178,2577.4,2577.1,3.8801926]
[1747584247936,0.21698215,2577.6,2577.2,3.88009359]
[1747584248225,4.09670205,2577.6,2577.0,3.88036925]
[1747584248520,3.88011561,2577.3,2577.0,8.696]
[1747584249219,8.8178,2577.7,2577.0,8.696]
[1747584249426,3.8802492,2577.2,2577.0,8.696]
[1747584249627,3.88003891,2577.3,2576.6,3.88096905]
[1747584249793,4.69458621,2577.2,2576.9,8.696]
[1747584250120,4.64608004,2577.2,2576.9,8.696]
[1747584250491,4.64608004,2577.2,2576.7,3.88091461]
[1747584250703,4.64608004,2577.2,2576.8,17.397]
[1747584251206,0.7659,2577.2,2576.8,17.397]
[1747584251492,3.88010235,2577.3,2576.8,23.01746343]
[1747584251704,3.88010235,2577.3,2576.8,21.27776343]
[1747584252144,0.7659,2577.5,2576.8,17.397]
[1747584252319,10.7859,2577.8,2577.3,3.879928]
[1747584252641,10.7859,2577.8,2577.4,3.87977703]
[1747584252843,0.7659,2577.8,2577.1,3.8803306]
[1747584253023,0.7659,2577.8,2576.6,16.755]
[1747584253024,0.7659,2578.1,2577.6,3.87948897]
[1747584253431,0.7659,2578.1,2577.4,12.58083774]
[1747584253616,0.7659,2578.1,2577.4,8.701]
[1747584253823,0.7659,2578.1,2577.8,3.87918148]
[1747584254322,4.64031515,2578.4,2577.8,3.87915183]
[1747584254521,4.64024524,2578.4,2577.8,3.87915183]
[1747584254822,3.87887213,2578.1,2577.5,1.25810096]
[1747584255025,0.7618,2577.9,2577.6,8.693]
[1747584255343,0.7618,2577.9,2577.6,12.57245219]
[1747584256009,0.7618,2577.9,2577.6,8.693]
[1747584256210,0.97870776,2578.2,2577.6,8.693]
[1747584256510,0.97870776,2578.2,2577.9,3.8790322]
[1747584256906,3.87910386,2578.0,2577.0,0.60115365]
[1747584257218,3.8792466,2577.9,2577.3,3.87995545]
[1747584257419,3.87984042,2577.5,2577.2,0.45043266]
[1747584257732,3.88001864,2577.4,2577.2,0.45043266]
[1747584258042,4.73207821,2577.4,2577.2,0.45043266]
[1747584258232,3.8799197,2577.4,2577.2,0.45043266]
[1747584258409,3.88002948,2577.3,2577.2,0.45043266]
[1747584258822,3.87993755,2577.4,2577.2,0.45043266]
[1747584259017,3.87996028,2577.4,2577.2,0.45043266]
[1747584259310,3.87988772,2577.4,2576.9,3.88051937]
[1747584259649,3.87988772,2577.4,2576.8,3.88070536]
[1747584259944,3.87988772,2577.4,2576.9,3.88059993]
[1747584260321,4.64225567,2577.1,2576.7,8.69]
[1747584260525,3.88054626,2577.0,2576.7,8.69]
[1747584260731,3.88054626,2577.0,2576.6,25.445]
[1747584261244,0.7618,2577.1,2576.6,29.24762165]
[1747584261453,0.7618,2577.1,2576.6,33.12859164]
[1747584261947,3.88074178,2576.9,2576.6,29.24762165]
[1747584262148,3.88074178,2576.9,2576.6,25.445]
[1747584262614,3.88074178,2576.9,2576.6,16.755]
[1747584262816,3.88079024,2576.8,2576.6,25.444]
[1747584263035,3.88075641,2576.9,2576.6,16.755]
[1747584263211,3.88102857,2576.7,2576.1,4.33219255]
[1747584263428,0.7618,2576.5,2576.1,0.45043266]
[1747584263626,4.6434862,2576.2,2576.1,0.45043266]
[1747584265358,4.64378757,2576.0,2575.2,1.21546226]
[1747584265657,4.64484275,2575.3,2575.2,1.21546226]
[1747584265957,3.88348959,2575.1,2574.5,8.688]
[1747584266249,3.88321849,2575.2,2574.6,3.88402601]
[1747584266457,4.64490868,2575.3,2574.7,3.88386471]
[1747584266611,3.88321235,2575.2,2574.7,3.88386471]
[1747584266814,3.88321235,2575.2,2574.7,3.88392514]
[1747584267448,0.7618,2575.3,2574.5,10.47184]
[1747584267658,3.88289197,2575.4,2574.6,1.917184]
[1747584267838,3.88312539,2575.3,2574.7,3.88393496]
[1747584268147,3.88358587,2575.0,2574.6,8.688]
[1747584268348,3.88341628,2575.1,2574.6,8.688]
[1747584268725,4.64537898,2575.0,2574.4,3.88428382]
[1747584268916,4.64540253,2575.0,2574.5,8.688]
[1747584269622,0.7618,2575.0,2574.5,8.688]
[1747584269951,0.7618,2575.0,2574.5,9.59658937]
[1747584270149,0.8238,2575.3,2574.5,9.59658937]
[1747584270358,4.70692869,2575.3,2574.6,3.8840985]
[1747584270555,0.8238,2575.3,2574.5,9.59658937]
[1747584270727,4.7064046,2575.6,2574.5,9.59658937]
[1747584270934,3.8828012,2575.5,2574.9,3.8835585]
[1747584271122,3.8828012,2575.5,2574.9,8.689]
[1747584271123,3.88314187,2575.3,2574.9,8.689]
[1747584271321,1.29444046,2575.6,2574.6,5.71245221]
[1747584271519,3.88337773,2575.1,2574.6,12.57399327]
[1747584271724,0.8238,2575.0,2574.6,8.688]
[1747584272254,3.8836523,2574.9,2574.5,8.688]
[1747584272437,0.8238,2575.0,2574.5,12.57219113]
[1747584272834,8.0,2575.3,2574.5,10.85935911]
[1747584273044,3.88346563,2575.1,2574.5,3.8842175]
[1747584273248,3.88346563,2575.1,2574.6,8.689]
[1747584273653,3.88346563,2575.1,2574.6,8.688]
[1747584274066,8.0,2575.3,2574.4,12.57535135]
[1747584274260,3.88365424,2574.9,2574.6,8.688]
[1747584274436,3.88363092,2575.0,2574.6,8.688]
[1747584275573,3.88363092,2575.0,2574.3,4.33490292]
[1747584275574,3.88364596,2574.9,2574.3,0.4504]
[1747584275760,4.6945535,2574.9,2574.4,8.688]
[1747584276059,0.8109,2574.9,2574.4,8.688]
[1747584276669,3.88387631,2574.8,2574.2,3.88461475]
[1747584276833,3.88395511,2574.7,2574.3,17.38]
[1747584277033,3.88387011,2574.8,2574.3,21.26454001]
[1747584277234,3.88387011,2574.8,2574.4,8.687]
[1747584277648,0.8109,2574.9,2574.4,8.687]
[1747584277853,3.88392883,2574.8,2574.4,8.688]
[1747584278156,3.88392665,2574.8,2574.2,3.88462965]
[1747584278352,3.88392665,2574.8,2573.6,0.7874]
[1747584278353,0.7975,2574.7,2573.6,0.7874]
[1747584278557,3.88452619,2574.4,2573.7,12.57335548]
[1747584278735,0.84605999,2574.7,2573.7,8.688]
[1747584278736,8.0,2574.5,2573.7,8.688]
[1747584278932,3.88455116,2574.3,2573.8,3.88520738]
[1747584279138,3.88509051,2574.0,2573.6,0.7874]
[1747584279451,3.8854597,2573.7,2573.1,26.30752199]
[1747584279653,8.0,2573.9,2573.1,26.30752199]
[1747584279837,8.0,2574.0,2573.1,26.30752199]
[1747584280037,3.88545673,2573.7,2573.1,0.06712199]
[1747584280264,4.8142289,2573.7,2573.1,3.95339564]
[1747584280979,3.8856077,2573.6,2573.1,0.06712199]
[1747584281148,4.81431099,2573.7,2573.1,3.95341542]
[1747584281469,3.88561901,2573.6,2573.1,0.06712199]
[1747584281763,0.7975,2573.8,2573.1,3.95342172]
[1747584281969,1.26576578,2573.8,2573.2,8.688]
[1747584282165,3.88557968,2573.7,2573.1,0.06712199]
[1747584282329,3.88585828,2573.5,2573.1,0.06712199]
[1747584282532,3.88566808,2573.6,2573.1,0.06712199]
[1747584283173,4.68293371,2573.8,2573.1,0.06712199]
[1747584283577,3.88557443,2573.7,2573.1,3.95339921]
[1747584283781,3.88566816,2573.6,2573.1,0.06712199]
[1747584283947,1.31729766,2573.7,2573.1,3.95347221]
[1747584284151,4.68281532,2573.8,2573.2,3.88612561]
[1747584284669,4.68289069,2573.8,2573.2,3.88621172]
[1747584284869,8.7975,2573.8,2573.1,0.06712199]
[1747584285075,3.88589672,2573.5,2573.1,0.06712199]
[1747584285269,3.88604322,2573.4,2572.9,8.687]
[1747584285845,3.88611026,2573.3,2572.8,0.7874]
[1747584286046,3.88611026,2573.3,2572.9,8.687]
[1747584286790,4.66330047,2573.3,2572.8,0.7874]
[1747584286992,3.88621172,2573.2,2572.6,8.686]
[1747584287170,3.88642371,2573.1,2572.6,8.686]
[1747584287484,3.88625712,2573.2,2572.5,0.8253]
[1747584287692,4.89226089,2573.1,2572.6,8.686]
[1747584287997,1.00577675,2573.1,2572.6,8.686]
[1747584288198,4.8922039,2573.1,2572.5,4.71251243]
[1747584288483,3.88656802,2573.0,2572.5,9.5113]
[1747584288683,3.88656802,2573.0,2572.2,20.6536864]
[1747584288684,3.88674879,2572.9,2572.3,12.57357143]
[1747584288890,1.00577675,2573.1,2572.5,3.88723893]
[1747584289197,5.45298552,2573.3,2572.5,12.67053594]
[1747584289423,3.88621172,2573.2,2572.6,3.88703678]
[1747584289636,3.8865295,2573.0,2572.5,0.7833]
[1747584289989,3.88671559,2572.9,2572.5,0.7833]
[1747584290189,9.56689021,2573.3,2572.5,0.7833]
[1747584290190,3.88645242,2573.1,2572.5,13.35552762]
[1747584290488,3.88652101,2573.0,2572.5,13.35552762]
[1747584290692,3.88652101,2573.0,2572.5,9.4683]
[1747584290925,3.88668453,2572.9,2572.5,9.4683]
[1747584291093,3.88668453,2572.9,2572.5,8.685]
[1747584291305,3.88651939,2573.0,2572.3,3.88752498]
[1747584291632,0.51849813,2573.0,2572.5,3.88724672]
[1747584291824,4.40510643,2573.0,2572.4,12.5723507]
[1747584292211,3.88668972,2572.9,2572.4,12.5723507]
[1747584292405,3.88668972,2572.9,2572.4,8.685]
[1747584292607,0.51849813,2573.0,2572.4,8.685]
[1747584292608,1.00579628,2573.1,2572.6,3.88698675]
[1747584292803,4.89219555,2573.1,2572.6,3.88698675]
[1747584293015,4.89219555,2573.1,2572.6,3.8870879]
[1747584293334,4.89217541,2573.1,2572.5,3.88723115]
[1747584293496,1.56689021,2573.3,2572.4,8.685]
[1747584293831,4.69358329,2573.6,2572.9,3.88666485]
[1747584294019,4.69358329,2573.6,2572.8,0.8265]
[1747584294020,3.88616619,2573.3,2572.8,4.71329323]
[1747584294219,0.8079,2573.6,2572.8,0.8265]
[1747584294220,5.46109985,2573.6,2572.8,0.8265]
[1747584294538,3.88628632,2573.2,2572.7,8.684]
[1747584294899,8.0,2573.5,2572.7,8.684]
[1747584295235,9.29815207,2573.6,2572.7,11.28247653]
[1747584295418,3.88583918,2573.5,2572.9,3.88654144]
[1747584295823,3.88592075,2573.4,2572.9,3.88654144]
[1747584296633,0.8079,2573.6,2572.8,3.88681592]
[1747584296939,3.88623687,2573.2,2572.8,8.683]
[1747584297123,3.88612347,2573.3,2572.8,8.683]
[1747584297320,3.88606183,2573.3,2572.8,12.56969926]
[1747584297621,3.88630603,2573.2,2572.8,8.683]
[1747584297827,0.04857947,2573.3,2572.7,15.167394]
[1747584297999,3.88624188,2573.2,2572.6,3.88705791]
[1747584298197,3.88598539,2573.4,2572.8,3.88672055]
[1747584298410,4.42706855,2573.5,2572.8,3.88676821]
[1747584298737,3.8857666,2573.5,2573.0,3.88638569]
[1747584299039,3.88594224,2573.4,2572.9,3.886595]
[1747584299198,3.88582788,2573.5,2573.0,3.88650194]
[1747584300138,0.8079,2573.6,2572.9,3.88666485]
[1747584300342,0.8079,2573.9,2573.0,8.682]
[1747584300528,8.682,2574.3,2573.7,3.88532048]
[1747584300529,0.8079,2574.3,2573.7,3.88532048]
[1747584300715,4.65318243,2574.2,2573.2,0.8265]
[1747584300943,0.8079,2573.7,2573.1,8.68]
[1747584301103,0.85647587,2573.7,2572.9,0.8265]
[1747584301438,0.85647587,2573.7,2572.6,8.682]
[1747584301439,3.88656109,2573.0,2572.6,9.5065]
[1747584301640,3.88680734,2572.9,2572.4,3.8874053]
[1747584301840,0.8079,2573.2,2572.8,3.88671201]
[1747584302003,0.21648164,2573.7,2573.3,3.88598746]
[1747584302204,0.21648164,2573.9,2573.3,3.88598746]
[1747584302407,0.21648164,2573.9,2573.5,3.88572152]
[1747584302740,0.21648164,2573.9,2573.0,0.8265]
[1747584302915,4.10173681,2573.9,2573.2,3.88621172]
[1747584303116,0.21648164,2573.9,2573.6,0.8265]
[1747584303334,0.21648164,2573.9,2573.6,4.71209963]
[1747584303631,0.21648164,2573.9,2573.8,3.88530577]
[1747584303808,4.94434365,2574.5,2573.8,8.678]
[1747584304141,3.88530577,2573.8,2573.7,0.36735405]
[1747584304356,4.69320577,2573.8,2573.7,0.36735405]
[1747584304555,12.95878224,2573.8,2573.7,0.36735405]
[1747584304736,4.69432488,2573.1,2572.6,3.8870663]
[1747584305125,0.8079,2573.1,2572.6,3.8870663]
[1747584305326,0.8079,2573.1,2572.5,5.3250679]
[1747584305550,3.88651379,2573.0,2572.5,5.32509321]
[1747584305718,4.69409035,2573.3,2572.6,0.36838936]
[1747584305918,0.21700075,2573.4,2572.6,0.36838936]
[1747584306257,3.88606464,2573.3,2572.7,3.88696699]
[1747584306462,3.88606464,2573.3,2572.8,3.88681245]
[1747584306657,3.88622454,2573.2,2572.7,3.88693442]
[1747584306861,3.93503388,2573.1,2572.6,0.36838936]
[1747584307064,3.88631102,2573.2,2572.7,8.675]
[1747584307357,3.88638754,2573.1,2572.6,4.25546668]
[1747584307529,0.3886311,2573.2,2572.8,0.36838936]
[1747584307723,0.3886311,2573.2,2572.9,3.88654676]
[1747584307923,0.8079,2573.6,2572.8,4.25518465]
[1747584308135,4.69353663,2573.6,2572.9,3.8866226]
[1747584308336,0.8079,2573.6,2572.9,0.8265]
[1747584308553,3.88590969,2573.4,2572.9,8.674]
[1747584308864,3.88578219,2573.5,2573.0,0.36838936]
[1747584309163,0.46936822,2573.4,2573.0,0.36838936]
[1747584309527,4.35531761,2573.4,2573.0,0.36838936]
[1747584309727,3.88636275,2573.1,2573.0,0.36838936]
[1747584310265,3.88672484,2572.9,2572.6,0.36838936]
[1747584310624,3.8865549,2573.0,2572.6,0.36838936]
[1747584310825,5.20066785,2573.0,2572.6,0.36838936]
[1747584311023,3.8866705,2572.9,2572.6,0.36838936]
[1747584311760,3.8866705,2572.9,2572.7,0.36838936]
[1747584311968,5.20065046,2573.0,2572.7,0.36838936]
[1747584312142,3.88666485,2572.9,2572.7,0.36838936]
[1747584312931,3.88681592,2572.8,2572.7,0.36838936]
[1747584313127,0.98508959,2572.9,2572.7,0.36838936]
[1747584313353,3.88681592,2572.8,2572.7,0.36838936]
[1747584313665,0.7637,2573.1,2572.4,0.36838936]
[1747584313666,0.266454,2572.9,2572.4,0.36838936]
[1747584313857,3.88715636,2572.6,2572.4,0.36838936]
[1747584314388,3.88696699,2572.7,2572.4,0.36838936]
[1747584314593,3.88724913,2572.6,2572.4,0.36838936]
[1747584314788,3.88726919,2572.5,2572.4,0.36838936]
[1747584315167,0.7744,2572.6,2572.4,0.36838936]
[1747584315370,0.21786593,2572.7,2572.4,0.36838936]
[1747584315689,4.10492919,2572.7,2572.2,9.4242]
[1747584315896,3.88716103,2572.6,2572.2,9.4242]
[1747584316259,3.88772257,2572.2,2572.1,0.36838936]
[1747584316458,0.7744,2572.4,2572.1,0.36838936]
[1747584316672,0.99226593,2572.7,2572.1,0.36838936]
[1747584316889,0.99226593,2572.7,2572.2,4.64180094]
[1747584317086,4.10484057,2572.7,2572.2,4.64183331]
[1747584317268,0.21786593,2572.7,2572.3,3.88754001]
[1747584317489,0.21786593,2572.7,2572.2,0.7542]
[1747584317689,3.88721158,2572.6,2572.2,0.7542]
[1747584317893,3.88734798,2572.5,2572.1,8.669]
[1747584318259,3.8873737,2572.5,2572.1,8.669]
[1747584318500,4.30256001,2572.6,2572.1,8.669]
[1747584318797,3.88735991,2572.5,2572.1,8.669]
[1747584319195,3.8874715,2572.4,2571.9,0.7542]
[1747584319390,3.8874715,2572.4,2572.0,8.668]
[1747584319590,3.88687328,2572.8,2572.0,8.668]
[1747584319902,0.7744,2572.9,2572.0,8.668]
[1747584320100,0.36266278,2572.8,2571.8,8.0]
[1747584320276,3.88707845,2572.7,2572.0,12.55600869]
[1747584320480,0.36266278,2572.8,2572.1,0.7576]
[1747584320668,4.24951755,2572.8,2572.3,3.88756651]
[1747584320869,0.36266278,2572.8,2572.1,0.7576]
[1747584321189,0.36266278,2572.8,2572.2,3.88759087]
[1747584321190,4.24956189,2572.8,2572.2,3.88759087]
[1747584321505,3.88697441,2572.7,2572.2,3.88759087]
[1747584321802,0.36266278,2572.8,2572.3,3.88753917]
[1747584322103,0.36266278,2572.8,2572.7,3.88696699]
[1747584322303,0.36266278,2572.8,2572.7,12.55296699]
[1747584322612,3.88616168,2573.3,2572.7,12.92174632]
[1747584322901,4.24845752,2573.4,2572.7,12.92174632]
[1747584323123,3.88610321,2573.3,2572.8,3.88669205]
[1747584323309,4.24850399,2573.4,2572.9,3.88662581]
[1747584323483,3.88596473,2573.4,2572.9,3.88662581]
[1747584323804,4.24833678,2573.5,2572.9,3.88662581]
[1747584324005,3.88594425,2573.4,2572.9,3.88662581]
[1747584324204,4.77485691,2573.4,2572.9,3.88662581]
[1747584324411,0.88891266,2573.4,2572.9,3.88662581]
[1747584324712,0.88891266,2573.4,2573.0,3.88651092]
[1747584325271,0.36253926,2573.5,2572.9,8.684]
[1747584325498,0.36253926,2573.5,2573.4,3.88590969]
[1747584325685,0.36253926,2573.5,2573.4,12.54890969]
[1747584326084,0.36253926,2573.5,2573.4,21.99050969]
[1747584326414,0.21747617,2574.1,2573.5,10.58765518]
[1747584326612,0.21747617,2574.1,2574.0,4.64260388]
[1747584326955,0.21747617,2574.1,2574.0,13.32560388]
[1747584327101,0.755,2574.7,2574.1,3.8847598]
[1747584327295,0.755,2574.7,2574.2,12.54566479]
[1747584327497,0.755,2575.2,2574.6,3.88407868]
[1747584327708,0.32373293,2575.1,2574.8,3.88379679]
[1747584327908,0.32373293,2575.1,2574.8,3.8837876]
[1747584328134,0.32373293,2575.1,2574.7,8.661]
[1747584328135,0.32373293,2575.1,2574.9,3.88350487]
[1747584328496,4.6378293,2575.5,2574.7,12.54491155]
[1747584328497,3.883051,2575.3,2574.7,12.54489235]
[1747584328698,0.755,2575.5,2574.7,8.661]
[1747584328912,3.88312999,2575.3,2574.8,8.66]
[1747584329458,0.85208913,2575.3,2574.4,0.7576]
[1747584329622,0.7736,2575.1,2574.5,3.88414891]
[1747584329821,3.8832927,2575.2,2574.4,4.64199117]
[1747584330154,3.88319353,2575.2,2574.6,3.88400829]
[1747584330561,4.73518187,2575.3,2574.7,3.88391816]
[1747584331032,0.85208913,2575.3,2574.8,12.5396638]
[1747584331232,0.85208913,2575.3,2574.8,8.656]
[1747584331433,3.88263899,2575.6,2575.0,4.63656753]
[1747584331644,3.88259046,2575.6,2575.0,4.63656753]
[1747584332246,0.7736,2576.0,2575.0,0.7532]
[1747584332564,3.88281765,2575.5,2575.0,0.7532]
[1747584332862,3.88245337,2575.7,2575.2,3.88318646]
[1747584333022,4.65891715,2575.7,2575.2,3.88318646]
[1747584333223,0.77646378,2575.7,2575.2,3.88318646]
[1747584333425,0.77646378,2575.7,2575.1,8.653]
[1747584333624,0.7736,2576.0,2575.1,8.653]
[1747584333824,0.7736,2576.0,2575.3,3.88301099]
[1747584334032,3.88238457,2575.8,2575.2,3.88308346]
[1747584334339,3.88243174,2575.8,2575.3,8.652]
[1747584334552,3.88191091,2576.1,2575.4,3.88289197]
[1747584334779,3.8821705,2575.9,2575.3,8.652]
[1747584335083,4.27017982,2576.0,2575.4,3.88282758]
[1747584335282,3.88216727,2575.9,2575.4,3.88282758]
[1747584335456,3.88216727,2575.9,2575.3,12.53495691]
[1747584335848,3.88216727,2575.9,2575.4,3.88288093]
[1747584336059,4.27022256,2576.0,2575.4,3.88288093]
[1747584337485,3.88188293,2576.1,2575.6,0.8199]
[1747584337645,3.88199162,2576.0,2575.6,0.8199]
[1747584337978,3.88183688,2576.1,2575.4,0.8199]
[1747584338191,3.88207623,2576.0,2575.5,8.647]
[1747584338372,3.88195223,2576.1,2575.5,12.52966551]
[1747584338679,3.88195223,2576.1,2575.6,3.88257102]
[1747584338868,3.88195223,2576.1,2575.5,12.52962199]
[1747584339289,3.88195223,2576.1,2575.6,3.88258346]
[1747584339502,3.88195223,2576.1,2575.5,12.52966278]
[1747584339875,3.88195223,2576.1,2575.5,15.11839461]
[1747584340061,3.88195223,2576.1,2575.4,13.35765548]
[1747584340062,12.83676138,2576.2,2575.4,0.8199]
[1747584340262,3.88183688,2576.1,2575.4,0.8199]
[1747584340464,0.7687,2575.8,2575.1,0.7532]
[1747584340659,0.7687,2575.8,2574.9,8.654]
[1747584340660,3.88319353,2575.2,2574.9,8.654]
[1747584340872,3.88321727,2575.2,2574.9,8.654]
[1747584341202,3.88321727,2575.2,2574.8,0.04247689]
[1747584341203,3.88364596,2574.9,2574.8,0.04247689]
[1747584341372,0.77661405,2575.2,2574.8,0.04247689]
[1747584341556,3.88360424,2575.0,2574.8,0.04247689]
[1747584341763,3.88341056,2575.1,2574.8,0.04247689]
[1747584341962,3.88350815,2575.0,2574.8,0.04247689]
[1747584342489,3.88364596,2574.9,2574.8,0.04247689]
[1747584342974,3.93219339,2574.9,2574.8,0.04247689]
[1747584343178,3.88364596,2574.9,2574.8,0.04247689]
[1747584343588,13.44036192,2574.9,2574.8,0.04247689]
[1747584343902,22.48527128,2574.9,2574.8,0.04247689]
[1747584344103,22.09336192,2574.9,2574.8,0.04247689]
[1747584344461,12.66364596,2574.9,2574.8,0.04247689]
[1747584344667,4.66364596,2574.9,2574.8,0.04247689]
[1747584345268,12.71219984,2574.9,2574.8,0.04247689]
[1747584345609,21.31764596,2574.9,2574.8,0.04247689]
[1747584345775,26.25489778,2574.9,2574.8,0.04247689]
[1747584345980,29.37629756,2574.9,2574.8,0.04247689]
[1747584346300,15.78504574,2574.9,2574.8,0.04247689]
[1747584349409,24.43904574,2574.9,2574.8,0.04247689]
[1747584351111,29.37629756,2574.9,2574.8,0.04247689]
[1747584353127,39.70273295,2574.9,2574.8,0.04247689]
[1747584353709,3.8856077,2573.6,2573.5,0.8277]
[1747584353907,3.8856077,2573.6,2573.0,3.8864383]
[1747584353908,3.88589639,2573.5,2573.0,0.7645]
[1747584354072,3.88589639,2573.5,2573.3,8.634]
[1747584354912,3.88568821,2573.6,2573.3,8.634]
[1747584355223,3.88531646,2573.8,2573.4,0.7645]
[1747584355520,3.88575869,2573.5,2573.4,0.7645]
[1747584355813,3.88564599,2573.6,2573.4,0.7645]
[1747584356220,3.88575869,2573.5,2573.4,0.7645]
[1747584356722,0.7517,2574.2,2573.4,1.70415]
[1747584356875,3.88533243,2573.8,2573.4,1.70415]
[1747584357215,3.88547667,2573.7,2573.4,1.70415]
[1747584357583,4.93725182,2574.4,2573.4,1.70415]
[1747584357584,0.7517,2574.4,2573.4,1.70415]
[1747584357783,3.88455114,2574.3,2573.7,3.88537867]
[1747584357975,3.88472269,2574.2,2573.8,9.40809858]
[1747584358376,3.88494846,2574.1,2573.8,9.40809858]
[1747584358813,3.88502541,2574.0,2573.8,9.40809858]
[1747584359027,3.88515482,2573.9,2573.5,0.7645]
[1747584359229,3.88507473,2574.0,2573.5,9.3945]
[1747584359514,3.88480825,2574.2,2573.5,9.3945]
[1747584359884,3.88486076,2574.1,2573.5,0.7645]
[1747584360102,8.0,2574.4,2573.6,8.629]
[1747584360298,3.88487072,2574.1,2573.7,0.93935]
[1747584360509,8.0,2574.4,2573.7,0.93935]
[1747584360695,3.88443136,2574.4,2573.9,0.8162]
[1747584360893,4.6358404,2574.6,2573.9,0.8162]
[1747584360894,8.0,2574.6,2574.0,3.88500388]
[1747584361079,10.9322,2575.0,2574.1,8.628]
[1747584361280,3.88414221,2574.6,2574.1,8.628]
[1747584361603,9.51121699,2574.9,2574.2,3.88467147]
[1747584361604,3.88387054,2574.8,2574.2,3.88467147]
[1747584361780,10.9322,2575.0,2574.2,4.7008472]
[1747584361781,3.88362576,2575.0,2574.2,4.7008472]
[1747584361981,3.88376377,2574.9,2574.3,3.88441183]
[1747584362208,3.88393199,2574.8,2574.4,8.627]
[1747584362477,3.88426989,2574.5,2574.3,8.627]
[1747584362706,3.88448638,2574.4,2574.2,0.8162]
[1747584363015,3.88424327,2574.6,2574.2,9.4422]
[1747584363215,8.0,2574.9,2574.2,0.8162]
[1747584363519,3.8840985,2574.6,2574.1,8.626]
[1747584363723,3.88398614,2574.7,2574.0,8.626]
[1747584363724,3.88482065,2574.2,2574.0,8.626]
[1747584363928,3.88455342,2574.3,2574.0,8.626]
[1747584364420,8.0,2574.8,2574.0,8.626]
[1747584364643,3.88379679,2574.8,2574.2,0.7737]
[1747584364846,3.88304275,2575.3,2574.6,3.88397602]
[1747584365046,0.7565,2575.4,2574.5,12.50823271]
[1747584365341,3.88332567,2575.2,2574.6,3.88401522]